fUST/lending_fUST_20260202
["ID","MTS","AMOUNT","RATE_DAILY","PERIOD"]
[404235367,1769983868380,276.805088,0.00036811,31]
[404235368,1769983873470,151.0,0.00036811,31]
[404235369,1769983874629,151.0,0.00036811,31]
[404235370,1769983874915,151.0,0.00036811,31]
[404235371,1769983875185,172.720576,0.00036811,31]
[404235372,1769983880795,151.0,0.00036811,31]
[404235373,1769983881386,151.0,0.00036811,31]
[404235374,1769983881821,151.0,0.00036811,31]
[404235375,1769983882150,151.0,0.00036811,31]
[404235376,1769983882465,151.0,0.00036811,31]
[404235377,1769983882780,151.0,0.00036811,31]
[404235378,1769983883064,151.0,0.00036811,31]
[404235379,1769983883402,151.0,0.00036811,31]
[404235380,1769983883719,151.0,0.00036811,31]
[404235381,1769983884016,151.0,0.00036811,31]
[404235382,1769983884312,151.0,0.00036811,31]
[404235383,1769983884611,151.0,0.00036811,31]
[404235384,1769983884902,151.0,0.00036811,31]
[404235385,1769983885184,227.610293,0.00036811,31]
[404235386,1769983950248,170.13665282,0.00036811,120]
[404235388,1769984115122,151.0,0.00036839,30]
[404235389,1769984115782,156.587,0.00036839,120]
[404235390,1769984116289,195.69406081,0.00036839,20]
[404235391,1769984116409,162.380719,0.00036839,60]
[404235392,1769984117054,168.3888056,0.00036839,90]
[404235393,1769984117675,168.3888056,0.00036839,90]
[404235428,1769984736123,-300.0,0.00013272,2]
[404235429,1769984736144,-270.06258995,0.00013272,2]
[404235436,1769984835112,-174.69248283,0.00013008,2]
[404235437,1769984890750,1313.45602809,0.0001,2]
[404235438,1769984890773,617.33321559,0.0001,2]
[404235445,1769984979411,-1306.62542761,0.00012749,2]
[404235446,1769984980993,-203.90234355,0.00012749,2]
[404235447,1769984985375,-157.39955595,0.00012749,2]
[404235448,1769984986861,-224.30937258,0.00012749,2]
[404235449,1769984989869,-300.0,0.00012749,2]
[404235477,1769985032073,-373.11910904,0.00012749,2]
[404235478,1769985032085,-342.39976044,0.00012749,2]
[404235493,1769985038200,-1917.551948,0.00012749,2]
[404235494,1769985038209,-150.0,0.00012813,2]
[404235495,1769985038219,-5000.0,0.00012878,2]
[404235496,1769985038230,-1200.0,0.00013271,2]
[404235497,1769985038240,-408.55432392,0.00013273,2]
[404235498,1769985038248,-162.61154024,0.00013273,2]
[404235499,1769985038257,-500.0,0.00013273,2]
[404235500,1769985038266,-500.0,0.00013273,2]
[404235501,1769985038274,-591.30697883,0.00013273,2]
[404235502,1769985038283,-287.47357518,0.00013273,2]
[404235503,1769985038292,-500.0,0.00013273,2]
[404235504,1769985038301,-3531.10154589,0.00013327,2]
[404235505,1769985038310,-351.52115889,0.00013327,2]
[404235506,1769985038319,-177.0,0.00014813,2]
[404235507,1769985038329,-351.1699889,0.00015022,2]
[404235508,1769985038338,-204.0,0.00016813,2]
[404235509,1769985038347,-2431.91334718,0.0001747,2]
[404235510,1769985038356,-522.24541841,0.00018423,2]
[404235511,1769985038365,-740.74221401,0.00018512,2]
[404235512,1769985038375,-231.0,0.00018813,2]
[404235513,1769985038384,-258.0,0.00020813,2]
[404235514,1769985038393,-285.0,0.00022813,2]
[404235515,1769985038402,-800.1219393,0.00024,2]
[404235516,1769985038411,-500.0,0.00029898,2]
[404235517,1769985038421,-500.0,0.00029898,2]
[404235518,1769985038430,-500.0,0.00029898,2]
[404235519,1769985038439,-500.0,0.00029898,2]
[404235520,1769985038449,-500.0,0.00029898,2]
[404235521,1769985038458,-500.0,0.00029898,2]
[404235522,1769985038472,-500.0,0.00029898,2]
[404235523,1769985038481,-500.0,0.00029898,2]
[404235524,1769985038490,-444.00736592,0.00029898,2]
[404235525,1769985038503,-55.99263408,0.00029898,2]
[404235526,1769985038513,-434.14379719,0.00029898,2]
[404235527,1769985038524,-83.47171322,0.00029898,2]
[404235528,1769985038534,-500.0,0.00029898,2]
[404235529,1769985038543,-500.0,0.00029898,2]
[404235530,1769985038552,-500.0,0.00029898,2]
[404235531,1769985038561,-100.66814878,0.00029898,2]
[404235532,1769985038573,-399.33185122,0.00029898,2]
[404235533,1769985038583,-500.0,0.00029898,2]
[404235534,1769985038592,-500.0,0.00029898,2]
[404235535,1769985038605,-500.0,0.00029898,2]
[404235536,1769985038616,-500.0,0.00029898,2]
[404235537,1769985038626,-214.5,0.00029898,2]
[404235538,1769985038636,-218.1453379,0.00029898,2]
[404235539,1769985038646,-170.0363541,0.00029898,2]
[404235540,1769985038655,-1960.38249302,0.00029899,2]
[404235541,1769985038665,-17973.1746914,0.0003,2]
[404235542,1769985038675,-170.499589,0.00031099,2]
[404235543,1769985038684,-180.10626269,0.00032647,9]
[404235544,1769985038694,-500.0,0.00032654,2]
[404235545,1769985038703,-170.499589,0.00032654,2]
[404235546,1769985038713,-151.75939225,0.000332,117]
[404235547,1769985038723,-427.24320923,0.0003325,2]
[404235548,1769985038733,-768.26873884,0.0003325,2]
[404235549,1769985038742,-195.52531311,0.0003325,2]
[404235550,1769985038752,-351.59361803,0.0003325,2]
[404235551,1769985038762,-179.0,0.00034005,2]
[404235552,1769985038771,-289.41087458,0.00034171,7]
[404235553,1769985038781,-4368.078748,0.00034172,2]
[404235554,1769985038790,-250.0,0.00034726,2]
[404235555,1769985038800,-500.0,0.00034726,2]
[404235556,1769985038809,-250.0,0.00034726,2]
[404235557,1769985038818,-500.0,0.00034863,2]
[404235558,1769985038827,-866.76586291,0.000349,2]
[404235559,1769985038837,-257.3,0.0003499,10]
[404235560,1769985038847,-214.41,0.0003499,10]
[404235561,1769985038857,-178.68,0.0003499,10]
[404235562,1769985038866,-893.42,0.0003499,10]
[404235563,1769985038876,-261.554,0.00034999,40]
[404235564,1769985038885,-360.48511117,0.00034999,7]
[404235565,1769985038895,-300.0,0.00035,2]
[404235566,1769985038904,-273.85630675,0.00035,2]
[404235567,1769985038914,-492.94135215,0.00035,2]
[404235568,1769985038923,-752212.36468924,0.00035,2]
[404235569,1769985038935,-22629.2,0.00035,2]
[404235965,1769985044020,-649.09,0.00035,2]
[404235980,1769985044086,-19786.0,0.00035,2]
[404235983,1769985044098,-334.3159,0.00035,2]
[404236083,1769985045170,-2003.2858229,0.00035,2]
[404236090,1769985045232,-453.0,0.00035,2]
[404236223,1769985046394,-302.0,0.00035,2]
[404236286,1769985931129,-499.73739008,0.00013273,2]
[404236287,1769985931151,-300.0,0.00013673,2]
[404236288,1769985931173,-150.0,0.00013673,2]
[404236289,1769985931194,-615.0,0.00013673,2]
[404236290,1769985931215,-346.84863601,0.00014221,2]
[404236291,1769986031092,-698.47956876,0.00014078,2]
[404236634,1769986238483,-5000.0,0.00013401,2]
[404236635,1769986238492,-419.96511608,0.00013536,2]
[404236636,1769986238501,-163.67258308,0.00013673,2]
[404236637,1769986238512,-150.0,0.00014947,2]
[404236638,1769986238521,-177.0,0.00016947,2]
[404236639,1769986238530,-204.0,0.00018947,2]
[404236640,1769986238539,-740.74221401,0.00019942,2]
[404236641,1769986238548,-231.0,0.00020947,2]
[404236642,1769986238558,-258.0,0.00022947,2]
[404236643,1769986238567,-1044.72587803,0.000248,10]
[404236644,1769986238576,-285.0,0.00024947,2]
[404236645,1769986238587,-1200.0,0.00025204,2]
[404236646,1769986238596,-300.0,0.00026848,2]
[404236647,1769986238605,-300.0,0.00026848,2]
[404236648,1769986238614,-312.0,0.00026947,2]
[404236649,1769986238623,-175.0,0.00027422,2]
[404236650,1769986238633,-288.3738281,0.00027609,30]
[404236651,1769986238642,-514.7902212,0.00028366,3]
[404236652,1769986238651,-1456.4059686,0.00028366,2]
[404236653,1769986238660,-167.360785,0.0002891,2]
[404236654,1769986238669,-339.0,0.00028947,2]
[404236655,1769986238678,-420.0,0.0002903,2]
[404236656,1769986238687,-167.360785,0.00030431,2]
[404236657,1769986238697,-366.0,0.00030947,2]
[404236658,1769986238706,-587.0,0.0003139,2]
[404236659,1769986238716,-167.360785,0.00031952,2]
[404236660,1769986238726,-393.0,0.00032947,120]
[404236661,1769986238735,-167.360785,0.00033473,2]
[404236662,1769986238744,-193.0,0.00033941,2]
[404236663,1769986238754,-200.57111926,0.00034726,2]
[404236664,1769986238763,-3459.0970273,0.00034837,2]
[404236665,1769986238773,-305.6779262,0.00034987,2]
[404236666,1769986238782,-209.243,0.00034987,40]
[404236667,1769986238792,-500.0,0.0003499,7]
[404236668,1769986238802,-500.0,0.0003499,7]
[404236669,1769986238812,-500.0,0.0003499,7]
[404236670,1769986238822,-500.0,0.0003499,7]
[404236671,1769986238831,-500.0,0.0003499,7]
[404236672,1769986238841,-500.0,0.0003499,7]
[404236673,1769986238851,-500.0,0.0003499,7]
[404236674,1769986238860,-500.0,0.0003499,7]
[404236675,1769986238870,-500.0,0.0003499,7]
[404236676,1769986238880,-500.0,0.0003499,7]
[404236677,1769986238890,-369.85773496,0.0003499,7]
[404236678,1769986238899,-500.0,0.0003499,7]
[404236679,1769986238909,-500.0,0.0003499,7]
[404236680,1769986238919,-500.0,0.0003499,7]
[404236681,1769986238928,-500.0,0.0003499,7]
[404236682,1769986238938,-500.0,0.0003499,7]
[404236683,1769986238947,-500.0,0.0003499,7]
[404236684,1769986238957,-500.0,0.0003499,7]
[404236685,1769986238966,-500.0,0.0003499,7]
[404236686,1769986238976,-293.4002821,0.0003499,7]
[404236687,1769986238986,-500.0,0.0003499,7]
[404236688,1769986238996,-500.0,0.0003499,7]
[404236689,1769986239005,-500.0,0.0003499,7]
[404236690,1769986239015,-500.0,0.0003499,7]
[404236691,1769986239024,-500.0,0.0003499,7]
[404236692,1769986239033,-500.0,0.0003499,7]
[404236693,1769986239042,-500.0,0.0003499,7]
[404236694,1769986239051,-500.0,0.0003499,7]
[404236695,1769986239060,-500.0,0.0003499,7]
[404236696,1769986239069,-500.0,0.0003499,7]
[404236697,1769986239079,-500.0,0.0003499,7]
[404236698,1769986239088,-500.0,0.0003499,7]
[404236699,1769986239098,-196.34404456,0.0003499,7]
[404236700,1769986239110,-303.65595544,0.0003499,7]
[404236701,1769986239119,-500.0,0.0003499,7]
[404236702,1769986239128,-584.6129239,0.0003499,7]
[404236703,1769986239219,-368.83668092,0.0003499,7]
[404236704,1769986239228,-500.0,0.0003499,7]
[404236705,1769986239238,-18.77085125,0.0003499,7]
[404236735,1769986240664,-481.22914875,0.0003499,7]
[404236737,1769986240673,-111.11935406,0.0003499,7]
[404236779,1769986924493,4688.771566,0.00036838,120]
[404236782,1769987137952,-500.0,0.00013273,2]
[404236783,1769987137972,-500.0,0.00013273,2]
[404236784,1769987137992,-500.0,0.00013273,2]
[404236785,1769987138013,-248.39708429,0.00013326,2]
[404236786,1769987230054,-800.00610746,0.0001314,2]
[404236787,1769987235126,-1589.70159374,0.0001314,2]
[404236788,1769987257777,500.0,0.00036841,20]
[404236789,1769987311388,591.79556044,0.00036841,20]
[404236790,1769987311566,571.76238884,0.00036841,20]
[404236828,1769987432523,-606.0,0.0001314,2]
[404236830,1769987432533,-367.0,0.00013272,2]
[404236832,1769987432545,-833.0,0.00013272,2]
[404236834,1769987432554,-500.0,0.00013273,2]
[404236836,1769987432564,-501.94091464,0.00013273,2]
[404236838,1769987432573,-500.0,0.00013273,2]
[404236840,1769987432582,-150.0,0.00013299,2]
[404236842,1769987432593,-300.0,0.00013326,2]
[404236844,1769987432602,-300.0,0.00013326,2]
[404236846,1769987432612,-235.82552981,0.00013326,2]
[404236849,1769987432632,-64.17447019,0.00013326,2]
[404236851,1769987432642,-300.0,0.00013326,2]
[404236853,1769987432651,-2033.81682421,0.00013327,2]
[404236855,1769987432660,-202.46646485,0.00013327,2]
[404236857,1769987432669,-300.0,0.00013673,2]
[404236859,1769987432679,-294.90616049,0.00013698,2]
[404236861,1769987432688,-357.38498917,0.00013699,2]
[404236863,1769987432702,-500.0,0.00013699,2]
[404236865,1769987432712,-507.49218995,0.00013699,2]
[404236867,1769987432723,-502.70621251,0.00013699,2]
[404236869,1769987432732,-500.0,0.00013699,2]
[404236871,1769987432741,-501.67094293,0.00013699,2]
[404236873,1769987432750,-501.32902716,0.00013699,2]
[404236875,1769987432759,-500.0,0.00013699,2]
[404236877,1769987432768,-595.58161953,0.00013699,2]
[404236878,1769987432778,-500.0,0.00013699,2]
[404236880,1769987432787,-500.0,0.00013699,2]
[404236882,1769987432796,-500.0,0.00013699,2]
[404236885,1769987432806,-500.0,0.00013699,2]
[404236887,1769987432815,-1000.0,0.00013821,2]
[404236889,1769987432824,-1000.0,0.00014247,2]
[404236891,1769987432833,-1000.0,0.00014247,2]
[404236893,1769987432849,-500.0,0.00014247,2]
[404236895,1769987432858,-200.29105694,0.00014247,2]
[404236897,1769987432868,-153.845326,0.00014247,2]
[404236899,1769987432877,-1002.16076125,0.00014247,2]
[404236901,1769987432887,-722.3651231,0.00014247,2]
[404236902,1769987432897,-500.0,0.00014368,2]
[404236905,1769987432907,-1680.0,0.00014599,2]
[404236907,1769987432918,-164.0,0.00014609,2]
[404236908,1769987432928,-420.0,0.00014609,2]
[404236911,1769987432938,-330.0,0.00014609,2]
[404236912,1769987432947,-1000.0,0.00014795,2]
[404236914,1769987432956,-1729.67488809,0.00014921,2]
[404236917,1769987432965,-1729.67488809,0.00014921,2]
[404236918,1769987432976,-500.0,0.00015021,2]
[404236920,1769987432985,-500.0,0.00015021,2]
[404236922,1769987432994,-500.0,0.00015021,2]
[404236924,1769987433004,-500.0,0.00015021,2]
[404236927,1769987433016,-500.0,0.00015021,2]
[404236929,1769987433026,-340.8351303,0.00015021,2]
[404236931,1769987433035,-500.0,0.00015021,2]
[404236932,1769987433044,-500.0,0.00015021,2]
[404236934,1769987433054,-530.37014244,0.00015021,2]
[404236936,1769987433063,-504.03589021,0.00015021,2]
[404236938,1769987433072,-500.0,0.00015021,2]
[404236940,1769987433082,-500.0,0.00015021,2]
[404236942,1769987433091,-500.0,0.00015021,2]
[404236944,1769987433101,-500.0,0.00015021,2]
[404236946,1769987433110,-500.0,0.00015021,2]
[404236949,1769987433120,-500.0,0.00015021,2]
[404236951,1769987433130,-500.0,0.00015021,2]
[404236952,1769987433139,-500.0,0.00015021,2]
[404236955,1769987433149,-500.0,0.00015021,2]
[404236956,1769987433158,-500.0,0.00015021,2]
[404236958,1769987433167,-500.0,0.00015021,2]
[404236960,1769987433177,-500.0,0.00015021,2]
[404236962,1769987433186,-500.0,0.00015021,2]
[404236964,1769987433196,-500.0,0.00015021,2]
[404236966,1769987433206,-500.0,0.00015021,2]
[404236968,1769987433215,-500.0,0.00015021,2]
[404236971,1769987433226,-500.0,0.00015021,2]
[404236973,1769987433236,-500.0,0.00015021,2]
[404236974,1769987433245,-500.0,0.00015021,2]
[404236976,1769987433254,-580.69970505,0.00015021,2]
[404236979,1769987433264,-500.0,0.00015021,2]
[404236980,1769987433275,-500.0,0.00015021,2]
[404236982,1769987433284,-500.0,0.00015021,2]
[404236985,1769987433294,-500.0,0.00015021,2]
[404236987,1769987433303,-500.0,0.00015021,2]
[404236989,1769987433312,-500.0,0.00015021,2]
[404236991,1769987433326,-500.0,0.00015021,2]
[404236993,1769987433335,-500.0,0.00015021,2]
[404236995,1769987433345,-500.0,0.00015021,2]
[404236997,1769987433354,-500.0,0.00015021,2]
[404236999,1769987433364,-500.0,0.00015021,2]
[404237001,1769987433373,-500.0,0.00015021,2]
[404237003,1769987433381,-500.0,0.00015021,2]
[404237005,1769987433391,-500.0,0.00015021,2]
[404237007,1769987433400,-500.0,0.00015021,2]
[404237009,1769987433409,-2031.78503917,0.00015022,2]
[404237011,1769987433418,-202.26420065,0.00015022,2]
[404237013,1769987433428,-177.0,0.00015299,2]
[404237015,1769987433437,-334.92,0.00015342,2]
[404237017,1769987433446,-180.0,0.00016016,2]
[404237019,1769987433456,-2351.0,0.00016059,2]
[404237021,1769987433465,-204.0,0.00017299,2]
[404237023,1769987433478,-1780.0,0.00017665,2]
[404237025,1769987433488,-231.0,0.00019299,2]
[404237027,1769987433497,-1041.66666667,0.00019886,2]
[404237029,1769987433507,-258.0,0.00021299,2]
[404237030,1769987433516,-179.0,0.00031838,2]
[404237032,1769987433526,-740.74221401,0.00033575,2]
[404237035,1769987433535,-693.41269032,0.00033862,2]
[404237036,1769987433545,-693.41269031,0.00034582,2]
[404237038,1769987433554,-168.0,0.00034598,2]
[404237040,1769987433563,-316.61675375,0.00034806,7]
[404237042,1769987433572,-202.43792573,0.00034806,7]
[404237044,1769987433581,-1192.1239459,0.00034807,2]
[404237046,1769987433590,-4772.703075,0.00034807,2]
[404237048,1769987433600,-179.0,0.00034838,2]
[404237049,1769987433609,-1000.0,0.00034986,15]
[404237050,1769987433618,-172.67271807,0.0003499,7]
[404237051,1769987433628,-206.43721158,0.0003499,2]
[404237052,1769987433638,-167.360785,0.00034994,2]
[404237053,1769987433648,-167.395,0.00034995,40]
[404237054,1769987433657,-334.94188757,0.00034996,120]
[404237055,1769987433668,-740.74221401,0.00034999,7]
[404237056,1769987433678,-143924.88936096,0.00035,2]
[404237057,1769987433687,-693.41269031,0.00035302,2]
[404237058,1769987433696,-2000.0,0.00035346,7]
[404237059,1769987433705,-990.0,0.00035616,120]
[404237060,1769987433715,-600.0,0.00035694,30]
[404237061,1769987433728,-152.52650043,0.00035694,2]
[404237062,1769987433737,-168.0,0.00035743,2]
[404237063,1769987433746,-693.41269031,0.00036021,2]
[404237064,1769987433755,-168.0,0.00036231,2]
[404237065,1769987433765,-168.0,0.00036289,2]
[404237066,1769987433774,-338.98932137,0.00036315,7]
[404237067,1769987433784,-194.84859356,0.00036411,7]
[404237068,1769987433793,-349.76,0.00036438,20]
[404237069,1769987433802,-710.0,0.0003644,11]
[404237070,1769987433811,-250.41601469,0.00036476,2]
[404237071,1769987433820,-379.0278615,0.00036497,30]
[404237072,1769987433829,-379.0278615,0.00036497,30]
[404237073,1769987433839,-378.0963672,0.00036497,30]
[404237074,1769987433852,-168.0,0.00036516,2]
[404237075,1769987433861,-168.0,0.00036581,2]
[404237076,1769987433871,-693.41269031,0.00036741,2]
[404237077,1769987433881,-150.0,0.000368,2]
[404237078,1769987433891,-740.74221401,0.0003681,3]
[404237079,1769987433899,-487.0,0.00036837,2]
[404237080,1769987433909,-487.0,0.00036837,2]
[404237081,1769987433919,-487.0,0.00036837,2]
[404237082,1769987433928,-487.0,0.00036837,2]
[404237083,1769987433938,-487.0,0.00036837,2]
[404237084,1769987433947,-487.0,0.00036837,2]
[404237085,1769987433957,-487.0,0.00036837,2]
[404237086,1769987433966,-487.0,0.00036837,2]
[404237087,1769987433978,-487.0,0.00036837,2]
[404237088,1769987433988,-487.0,0.00036837,2]
[404237089,1769987433998,-487.0,0.00036837,2]
[404237090,1769987434007,-487.0,0.00036837,2]
[404237091,1769987434019,-487.0,0.00036837,2]
[404237092,1769987434028,-487.0,0.00036837,2]
[404237093,1769987434038,-487.0,0.00036837,2]
[404237094,1769987434050,-487.0,0.00036837,2]
[404237095,1769987434059,-487.0,0.00036837,2]
[404237096,1769987434068,-487.0,0.00036837,2]
[404237097,1769987434077,-603.28,0.00036837,2]
[404237098,1769987434087,-500.0,0.0003684,13]
[404237099,1769987434096,-300.0,0.00036841,2]
[404237100,1769987434105,-22888.83161499,0.00036841,2]
[404237101,1769987434114,-3922.4883003,0.00036841,2]
[404237102,1769987434124,-817.90078901,0.00036841,2]
[404237103,1769987434132,-260.78712638,0.00036841,2]
[404237104,1769987434142,-330.23197963,0.00036841,2]
[404237105,1769987434151,-294.72415654,0.00036841,2]
[404237106,1769987434160,-52235.44829335,0.00036841,2]
[404237107,1769987434169,-643.54349728,0.00036841,2]
[404237108,1769987434179,-1375.30912305,0.00036841,2]
[404237109,1769987434188,-158.16649023,0.00036841,2]
[404237110,1769987434198,-968.2453051,0.00036841,2]
[404237111,1769987434207,-709.49854537,0.00036841,2]
[404237112,1769987434216,-13067.93477593,0.00036841,2]
[404237113,1769987434232,-378.87651725,0.00036841,2]
[404237114,1769987434243,-489.0,0.00036841,2]
[404237115,1769987434255,-7843.527,0.00036841,2]
[404237150,1769987438685,-8.43735185,0.00036841,2]
[404237152,1769987438694,-296.51442246,0.00036841,2]
[404237154,1769987438705,-6065.3163417,0.00036841,2]
[404237156,1769987438714,-159.17567,0.00036841,2]
[404237158,1769987438728,-1734.2061534,0.00036841,2]
[404237170,1769987438823,-7557.19449131,0.00036841,2]
[404237172,1769987438834,-512.51283611,0.00036841,2]
[404237174,1769987438846,-472.39557315,0.00036841,2]
[404237176,1769987438856,-185.661807,0.00036841,2]
[404237178,1769987438867,-14913.53792733,0.00036841,2]
[404237180,1769987438879,-15834.70962904,0.00036841,2]
[404237182,1769987438889,-190.97205853,0.00036841,2]
[404237184,1769987438899,-1206.5330604,0.00036841,2]
[404237186,1769987438909,-1410.26178838,0.00036841,2]
[404237188,1769987438921,-657.40696742,0.00036841,2]
[404237190,1769987438931,-2920.0,0.00036841,2]
[404237192,1769987438940,-280.11649613,0.00036841,2]
[404237262,1769987441719,-221.63172762,0.00033861,7]
[404237263,1769987441730,-1278.3691334,0.00036841,2]
[404237297,1769987446907,-556.0039878,0.0001492,2]
[404237298,1769987446917,-500.0,0.0001492,2]
[404237299,1769987446927,-300.24268328,0.0001492,2]
[404237300,1769987446939,-199.75731672,0.0001492,2]
[404237301,1769987446948,-392.26334916,0.0001492,2]
[404237302,1769987446958,-453.41107834,0.0001492,2]
[404237303,1769987446968,-500.0,0.00034996,120]
[404237304,1769987446982,-500.0,0.00034999,120]
[404237305,1769987446991,-1721.01994221,0.00036841,2]
[404237306,1769987447003,-996.9,0.00036841,2]
[404237307,1769987447014,-1708.0070859,0.00036841,2]
[404237308,1769987447025,-8942.67289482,0.00036841,2]
[404237309,1769987447036,-3521.27051379,0.00036841,2]
[404237310,1769987447047,-447.99999999,0.00036841,2]
[404237314,1769987448175,-448.50501451,0.00036841,2]
[404237315,1769987448187,-5808.0,0.00036841,2]
[404237316,1769987458526,150.0,0.00022404,120]
[404237317,1769987458910,150.0,0.00024804,120]
[404237318,1769987459311,150.0,0.00027205,120]
[404237319,1769987459673,150.0,0.00029605,120]
[404237320,1769987469482,-221.6317276,0.00013273,2]
[404237321,1769987470824,150.0,0.00022469,120]
[404237322,1769987471221,150.0,0.00024877,120]
[404237323,1769987481540,150.0,0.0002247,120]
[404237324,1769987498425,150.0,0.00022468,120]
[404237326,1769987814411,-352.73587407,0.0001275,2]
[404237327,1769987818908,-4647.26412593,0.0001275,2]
[404237328,1769987821590,-352.71846083,0.00012623,2]
[404237329,1769987821618,-3521.26865349,0.00012879,2]
[404237330,1769987821648,-150.0,0.00012944,2]
[404237331,1769987821676,-907.0,0.00013139,2]
[404237332,1769987821715,-1.04433256,0.00013273,2]
[404237333,1769987848973,151.0,0.00036837,31]
[404237334,1769987890421,151.0,0.00036837,31]
[404237335,1769987890736,151.0,0.00036837,31]
[404237336,1769987891030,151.0,0.00036837,31]
[404237337,1769987891313,151.0,0.00036837,31]
[404237339,1769987975472,-500.0,0.0001314,2]
[404237340,1769987976475,-500.0,0.0001314,2]
[404237341,1769987977723,-500.0,0.0001314,2]
[404237342,1769987978107,-3500.0,0.0001314,2]
[404237343,1769987978139,-135.94710624,0.00013273,2]
[404237344,1769987978170,-260.56664154,0.00013273,2]
[404237345,1769987978201,-500.0,0.00013273,2]
[404237346,1769987978230,-500.0,0.00013699,2]
[404237347,1769987978261,-41.98250444,0.00014944,2]
[404237348,1769987983975,-123.01749556,0.00014944,2]
[404237349,1769988041555,-278.369134,0.00020995,2]
[404237350,1769988077451,-483.02742215,0.00013273,2]
[404237351,1769988077472,-516.97257785,0.00020995,2]
[404237352,1769988078556,-223.02742215,0.00020995,2]
[404237353,1769988078677,-776.97257785,0.00027649,2]
[404237354,1769988079805,-92.16921325,0.00027649,2]
[404237355,1769988079826,-300.0,0.00027927,2]
[404237356,1769988079846,-300.0,0.00027927,2]
[404237357,1769988079867,-307.83078675,0.00027928,2]
[404237358,1769988081441,-1000.0,0.00027928,2]
[404237359,1769988082643,-1000.0,0.00027928,2]
[404237360,1769988083846,-1000.0,0.00027928,2]
[404237361,1769988084959,-32.20564932,0.00027928,2]
[404237362,1769988084979,-967.79435068,0.00027928,2]
[404237363,1769988086149,-1000.0,0.00027928,2]
[404237364,1769988087380,-1000.0,0.00027928,2]
[404237365,1769988088635,-1000.0,0.00027928,2]
[404237366,1769988089824,-1000.0,0.00027928,2]
[404237367,1769988091126,-1000.0,0.00027928,2]
[404237368,1769988092238,-1000.0,0.00027928,2]
[404237369,1769988093386,-1000.0,0.00027928,2]
[404237370,1769988094686,-1000.0,0.00027928,2]
[404237371,1769988095953,-1000.0,0.00027928,2]
[404237372,1769988097260,-755.32700302,0.00027928,2]
[404237373,1769988122286,195.48709883,0.00036845,31]
[404237374,1769988148786,-171.0,0.00030164,2]
[404237375,1769988160514,-216.06470074,0.00032647,9]
[404237376,1769988160536,-151.75939226,0.000332,117]
[404237377,1769988160556,-243.160503,0.0003419,2]
[404237378,1769988214388,500.0,0.00036845,120]
[404237379,1769988214593,500.0,0.00036845,120]
[404237380,1769988214921,500.0,0.00036845,120]
[404237381,1769988215148,500.0,0.00036845,120]
[404237382,1769988215398,500.0,0.00036845,120]
[404237383,1769988215631,500.0,0.00036845,120]
[404237384,1769988215872,500.0,0.00036845,120]
[404237385,1769988216107,500.0,0.00036845,120]
[404237386,1769988216359,500.0,0.00036845,120]
[404237387,1769988216608,499.3170918,0.00036845,120]
[404237388,1769988217787,-243.16121654,0.00024151,2]
[404237390,1769988322705,-151.75939226,0.00023909,2]
[404237391,1769988357165,-22.93309057,0.00023909,2]
[404237392,1769988357188,-82.47700736,0.00024151,2]
[404237393,1769988357208,-325.6382239,0.00027345,2]
[404237394,1769988357230,-256.84771756,0.0003054,2]